bitfinex-derivatives/quotes_ETHF0:USTF0_20250903
["timestamp","ask_amount","ask_price","bid_price","bid_amount"]
[1756910571960,0.8262,4476.9,4476.1,0.261]
[1756910572159,3.2078,4477.2,4476.5,3.2078]
[1756910572358,3.2078,4477.2,4477.0,4.44616807]
[1756910572559,0.8262,4477.5,4477.1,1.0568]
[1756910572759,0.8262,4477.5,4477.2,0.7958]
[1756910572959,0.5856,4478.0,4477.0,7.65396807]
[1756910573165,0.8262,4477.9,4477.1,0.261]
[1756910573365,0.8262,4477.9,4477.2,0.261]
[1756910573665,0.3246,4478.0,4477.2,0.261]
[1756910574164,0.8262,4477.9,4477.6,4.44616807]
[1756910574362,0.8262,4477.9,4477.6,4.70716807]
[1756910574560,0.8262,4478.2,4477.7,0.261]
[1756910574757,0.8262,4478.2,4477.3,0.7958]
[1756910574758,0.8262,4478.2,4477.3,0.261]
[1756910574965,0.8262,4478.2,4477.4,0.261]
[1756910575668,0.8262,4478.2,4477.5,0.261]
[1756910576062,0.8262,4478.2,4477.2,3.2078]
[1756910576265,0.8262,4478.2,4477.3,0.26]
[1756910576468,3.2078,4477.7,4477.4,0.26]
[1756910576665,3.2078,4477.7,4477.0,0.7958]
[1756910576869,4.034,4477.7,4477.1,0.26]
[1756910577168,4.034,4477.7,4477.0,0.7958]
[1756910577169,0.8262,4477.6,4476.8,4.44616807]
[1756910577362,0.3208,4477.5,4476.8,4.44616807]
[1756910577565,0.3208,4477.5,4476.9,0.26]
[1756910577761,0.3208,4477.5,4476.8,4.44616807]
[1756910577961,0.8262,4477.6,4476.8,4.44616807]
[1756910578264,0.3208,4477.5,4476.7,3.2078]
[1756910578566,0.3208,4477.0,4475.5,3.2078]
[1756910578762,0.8262,4478.1,4477.0,0.7958]
[1756910578962,0.17,4478.9,4478.0,5.24196807]
[1756910579161,0.9962,4478.9,4478.0,8.44976807]
[1756910579373,0.9962,4478.9,4478.1,3.4698]
[1756910579663,0.8262,4478.8,4478.2,0.262]
[1756910579862,3.3778,4478.9,4478.2,0.261]
[1756910580066,0.8262,4478.8,4478.1,3.4688]
[1756910580365,0.51196812,4478.7,4476.9,3.2078]
[1756910580565,0.8262,4478.4,4476.9,3.2078]
[1756910580868,0.8262,4477.8,4477.0,0.7958]
[1756910581165,0.8262,4477.8,4477.1,0.261]
[1756910581567,0.8262,4477.8,4477.0,0.7958]
[1756910581761,0.8262,4477.8,4477.1,0.261]
[1756910582268,1.147,4478.5,4477.6,0.7958]
[1756910582466,0.8262,4478.4,4478.3,3.2078]
[1756910582768,33.69697776,4479.5,4478.3,3.2078]
[1756910582769,0.9962,4478.9,4478.3,3.2078]
[1756910583068,0.17,4478.9,4478.4,0.261]
[1756910583368,0.17,4478.9,4478.8,3.2078]
[1756910583572,0.17,4478.9,4478.8,4.2646]
[1756910583772,0.17,4478.9,4478.8,8.71076807]
[1756910584066,0.17,4478.9,4478.8,3.2078]
[1756910584366,0.9962,4478.9,4478.7,0.261]
[1756910584570,0.9962,4478.9,4478.8,0.261]
[1756910584763,0.9962,4478.9,4478.6,0.261]
[1756910584963,0.8262,4478.8,4478.6,0.261]
[1756910585169,0.17,4478.9,4478.6,0.261]
[1756910585569,0.9962,4478.9,4478.7,0.261]
[1756910585870,0.9962,4478.9,4478.8,0.261]
[1756910585871,0.17,4478.9,4478.8,0.261]
[1756910586067,0.17,4478.9,4478.8,0.26]
[1756910586370,0.17,4478.9,4478.8,4.2636]
[1756910586569,0.77141599,4479.4,4478.8,4.2636]
[1756910586770,3.2078,4479.9,4478.8,3.2078]
[1756910587063,3.2078,4479.9,4478.9,0.26]
[1756910587064,0.51237205,4479.8,4478.9,0.26]
[1756910587263,3.2078,4479.9,4479.0,0.26]
[1756910587264,0.51237205,4479.7,4479.0,0.26]
[1756910587463,0.51237205,4479.6,4479.0,0.26]
[1756910587670,3.2078,4479.9,4478.8,7.65396807]
[1756910587871,0.51216179,4479.8,4479.3,3.2078]
[1756910588068,0.43,4480.0,4479.4,5.24196807]
[1756910588272,0.43,4480.0,4479.9,4.0036]
[1756910588472,0.43,4480.0,4479.9,3.4678]
[1756910589275,0.43,4480.0,4479.9,4.0036]
[1756910589568,0.43,4480.0,4479.9,4.2636]
[1756910589967,0.43,4480.0,4479.9,3.2078]
[1756910590171,0.43,4480.0,4479.4,3.2078]
[1756910590473,0.43,4480.0,4479.9,4.0036]
[1756910590775,1.3562,4480.0,4479.4,3.2078]
[1756910591074,1.3562,4480.0,4479.5,0.26]
[1756910591271,1.3562,4480.0,4479.5,0.7958]
[1756910591467,0.53,4480.0,4479.6,1.0558]
[1756910591669,1.3601,4480.0,4479.7,0.26]
[1756910591872,0.8301,4479.8,4479.4,3.2078]
[1756910592074,0.8301,4479.8,4479.5,0.26]
[1756910592270,0.8301,4479.8,4478.9,3.2078]
[1756910592778,0.1,4479.4,4478.9,3.2078]
[1756910592975,0.8301,4479.3,4479.0,0.26]
[1756910593178,0.1,4479.4,4479.1,0.8495]
[1756910593373,0.1,4479.4,4479.2,0.26]
[1756910593572,0.8301,4479.3,4478.9,3.2078]
[1756910593875,0.8301,4479.0,4478.9,3.2078]
[1756910594074,0.8301,4479.0,4478.9,3.4678]
[1756910594474,0.8301,4479.0,4478.9,3.2078]
[1756910594670,0.3277,4479.0,4478.5,0.259]
[1756910594875,0.1,4478.8,4478.4,0.259]
[1756910595078,0.9301,4478.8,4478.1,3.2078]
[1756910595279,0.9301,4478.8,4478.2,0.259]
[1756910595777,0.9301,4478.8,4478.6,3.2078]
[1756910595980,0.9301,4478.7,4478.6,3.2078]
[1756910596181,0.1,4478.7,4478.6,4.3163]
[1756910596483,1.5878,4480.0,4478.7,0.8495]
[1756910596682,0.8301,4479.9,4479.4,3.2078]
[1756910596883,0.3277,4479.5,4479.0,0.259]
[1756910597079,1.1578,4479.5,4479.0,0.259]
[1756910597378,0.8301,4479.4,4479.1,0.259]
[1756910597880,0.3277,4479.5,4478.9,3.2078]
[1756910598085,0.8301,4478.9,4478.3,3.2078]
[1756910598282,4.0379,4479.4,4478.5,0.8495]
[1756910598484,0.8301,4479.4,4478.5,0.8495]
[1756910598684,0.8301,4479.4,4478.9,3.2078]
[1756910598884,0.3277,4479.5,4478.9,3.4668]
[1756910599085,0.8301,4479.6,4479.4,3.2078]
[1756910599279,0.1,4480.2,4479.4,3.2078]
[1756910599580,0.22323,4479.9,4479.4,3.2078]
[1756910599774,0.3277,4479.5,4478.9,3.2078]
[1756910599976,0.3277,4479.0,4478.3,3.2078]
[1756910600182,0.8301,4478.9,4478.5,3.2078]
[1756910600375,3.7945,4479.5,4478.5,3.2078]
[1756910600685,0.5122493,4479.4,4478.5,3.2078]
[1756910600880,1.3423493,4479.3,4478.5,3.2078]
[1756910601080,0.8301,4479.3,4479.2,3.2078]
[1756910601588,0.8301,4479.3,4479.2,3.4668]
[1756910601889,0.8301,4479.3,4479.2,3.2078]
[1756910602584,0.259,4479.9,4479.2,3.2078]
[1756910602585,0.8301,4479.8,4479.2,3.2078]
[1756910602784,0.8301,4479.6,4479.2,3.2078]
[1756910602987,0.43,4480.0,4479.3,0.8495]
[1756910603189,0.43,4480.0,4479.9,4.0573]
[1756910603385,0.8301,4481.1,4480.0,0.3343]
[1756910603581,0.51273306,4481.0,4480.1,0.8495]
[1756910603781,0.51273306,4480.9,4480.2,0.26]
[1756910603976,0.8301,4481.1,4480.2,0.26]
[1756910604180,0.512736,4481.0,4480.3,0.259]
[1756910604379,0.8301,4480.8,4480.2,0.259]
[1756910604579,0.8301,4480.8,4479.9,3.2078]
[1756910604580,0.51271289,4480.7,4480.1,0.259]
[1756910604881,0.3277,4481.5,4480.0,0.259]
[1756910604882,0.51271289,4480.6,4480.0,0.259]
[1756910605086,0.8301,4481.4,4480.2,3.2078]
[1756910605286,0.8301,4481.2,4480.3,0.259]
[1756910605486,0.51267578,4481.1,4480.2,3.2078]
[1756910605692,0.51267578,4481.0,4480.3,0.259]
[1756910605892,0.8301,4481.2,4480.2,3.2078]
[1756910606077,1.1578,4481.0,4480.3,0.259]
[1756910606282,0.8301,4480.8,4480.3,0.259]
[1756910606476,3.5355,4481.0,4480.2,3.2078]
[1756910606477,0.8301,4480.9,4480.2,3.2078]
[1756910606888,0.8301,4480.9,4480.3,0.259]
[1756910607488,0.51233148,4480.8,4480.0,0.259]
[1756910607688,0.8301,4480.9,4480.0,0.8495]
[1756910607878,0.51233975,4480.8,4480.0,1.1085]
[1756910608187,3.5355,4481.0,4480.3,3.2078]
[1756910608886,1.34252504,4480.9,4480.3,0.8495]
[1756910609189,0.8301,4481.4,4480.3,0.8495]
[1756910609487,0.8301,4481.2,4480.3,0.8495]
[1756910609691,4.3656,4481.0,4480.2,3.4668]
[1756910609983,0.51241772,4480.9,4480.2,3.4668]
[1756910610187,0.51241772,4480.9,4479.9,1.02762909]
[1756910610188,1.52787776,4482.5,4481.0,0.3343]
[1756910610387,0.8301,4482.6,4481.5,3.5421]
[1756910610590,0.8301,4482.4,4481.5,3.2078]
[1756910610792,0.51207786,4482.3,4481.6,0.26]
[1756910610990,0.51207786,4482.3,4481.6,1.1095]
[1756910611190,0.8301,4482.4,4481.6,1.1095]
[1756910611387,3.2078,4482.7,4481.6,1.1095]
[1756910611591,3.2078,4482.7,4481.7,0.22311]
[1756910611789,0.8301,4482.9,4482.2,0.8495]
[1756910611983,3.2078,4483.2,4482.1,3.2078]
[1756910611984,3.2078,4483.2,4482.3,0.26]
[1756910612184,0.8301,4483.4,4482.6,3.2078]
[1756910612384,1.1578,4484.0,4482.8,0.8495]
[1756910612589,1.1578,4484.0,4483.2,0.8495]
[1756910612795,3.2078,4483.6,4482.7,0.8495]
[1756910612991,0.8301,4483.5,4482.7,0.8495]
[1756910613184,0.8301,4483.4,4482.6,3.2078]
[1756910613388,0.8301,4483.4,4482.7,0.26]
[1756910613695,0.8301,4483.4,4482.6,3.2078]
[1756910613987,0.8301,4483.4,4482.5,0.261]
[1756910614185,0.8301,4483.4,4482.2,1.02409151]
[1756910614387,4.0379,4483.1,4482.2,1.02409151]
[1756910614592,4.0379,4483.1,4482.3,0.26]
[1756910614788,4.0379,4483.1,4482.2,1.02409151]
[1756910614995,4.0379,4483.1,4482.3,0.26]
[1756910615497,4.0379,4483.1,4482.4,0.26]
[1756910615796,0.3277,4483.0,4482.4,0.26]
[1756910615991,0.3277,4483.0,4482.1,3.2078]
[1756910616197,0.8301,4482.9,4482.1,3.2078]
[1756910616494,0.8301,4482.9,4481.7,4.84058047]
[1756910616495,3.2078,4482.6,4481.7,4.84058047]
[1756910616791,1.1578,4482.5,4481.8,0.26]
[1756910616993,1.1578,4482.5,4481.6,3.2078]
[1756910616994,0.3277,4482.5,4481.6,3.2078]
[1756910617197,0.8301,4481.8,4480.9,3.2078]
[1756910617491,0.8301,4481.8,4480.8,3.99108047]
[1756910617492,3.2078,4481.9,4480.5,0.8495]
[1756910617685,0.8301,4481.1,4480.4,3.4678]
[1756910617890,0.8301,4480.9,4480.4,3.2078]
[1756910618097,0.3277,4481.0,4480.4,3.2078]
[1756910618292,0.8301,4480.9,4480.4,3.2078]
[1756910618692,0.3277,4480.5,4479.9,3.2078]
[1756910618889,0.8301,4479.9,4478.9,0.259]
[1756910619090,0.8301,4479.9,4478.8,0.8495]
[1756910619487,3.7945,4480.0,4478.5,7.19888047]
[1756910619786,0.8301,4479.9,4479.0,3.2078]
[1756910619985,0.8301,4479.9,4479.1,0.8495]
[1756910620291,3.5355,4480.0,4479.0,3.2078]
[1756910620495,0.8301,4479.9,4479.0,3.2078]
[1756910620697,3.5355,4480.0,4479.0,3.2078]
[1756910620891,3.2078,4480.0,4479.5,3.99108047]
[1756910621093,3.2078,4480.0,4479.0,3.5421]
[1756910621298,0.8301,4480.1,4479.5,7.19888047]
[1756910621595,0.8227,4480.1,4479.1,0.8495]
[1756910621794,3.4668,4480.2,4479.1,0.8495]
[1756910621795,0.8227,4479.9,4479.1,0.8495]
[1756910622294,0.8227,4479.9,4479.0,3.2078]
[1756910622904,0.3303,4480.0,4479.0,3.4668]
[1756910623104,0.8227,4479.9,4479.0,3.4668]
[1756910623402,0.3303,4480.0,4479.0,3.2078]
[1756910623594,0.8227,4479.9,4479.0,3.2078]
[1756910623999,3.2078,4479.7,4478.8,0.259]
[1756910624198,0.3303,4479.5,4478.7,0.259]
[1756910624399,0.8227,4479.4,4478.6,0.259]
[1756910625095,0.8227,4479.4,4478.5,0.8337]
[1756910625400,0.8227,4479.4,4478.6,3.99108047]
[1756910625698,0.8227,4479.6,4479.2,0.8337]
[1756910625895,0.8227,4479.6,4479.1,3.2078]
[1756910626097,0.8227,4479.6,4479.3,0.8337]
[1756910626295,0.8227,4479.9,4479.1,3.2078]
[1756910626792,3.7971,4480.0,4478.6,3.2078]
[1756910626992,0.8227,4479.9,4478.6,3.2078]
[1756910627193,0.8227,4479.8,4478.6,3.2078]
[1756910627396,0.8227,4479.9,4478.6,3.2078]
[1756910627593,0.22325,4479.8,4478.6,3.2078]
[1756910627796,0.22325,4479.9,4478.6,3.2078]
[1756910627998,0.22325,4479.9,4477.5,32.4833]
[1756910627999,3.2078,4478.7,4477.9,0.17569495]
[1756910628194,0.8227,4478.6,4477.8,0.8337]
[1756910628391,0.8227,4478.1,4477.1,1.05623259]
[1756910628591,3.2078,4477.7,4477.1,0.22253259]
[1756910628799,0.8227,4477.5,4477.1,0.22253259]
[1756910629002,3.2078,4477.2,4476.6,1.0917]
[1756910629196,0.8227,4477.1,4476.4,0.18048918]
[1756910629392,0.8227,4477.7,4476.8,3.99108047]
[1756910629591,0.8227,4477.7,4477.3,4.82478047]
[1756910629592,1.0807,4477.7,4477.3,4.82478047]
[1756910630004,3.2078,4477.8,4477.5,0.8337]
[1756910630204,0.8227,4478.8,4477.7,4.0415]
[1756910630498,0.3303,4478.0,4477.1,4.0415]
[1756910630696,0.8227,4477.5,4476.8,0.258]
[1756910630896,0.8227,4477.5,4476.7,3.99108047]
[1756910631094,0.8227,4477.5,4476.8,0.259]
[1756910631300,0.8227,4477.5,4476.6,3.2078]
[1756910631504,1.153,4477.5,4476.7,0.258]
[1756910631703,1.411,4477.5,4476.7,0.258]
[1756910631908,1.411,4477.5,4476.6,3.2078]
[1756910632097,0.8227,4477.4,4476.6,3.2078]
[1756910632301,0.5883,4477.5,4476.6,3.2078]
[1756910632502,0.8227,4477.4,4476.1,3.2078]
[1756910632699,0.3303,4477.0,4476.1,3.2078]
[1756910632899,0.258,4476.9,4476.1,3.2078]
[1756910633094,0.8227,4476.8,4476.1,3.2078]
[1756910633401,0.3303,4476.5,4475.6,3.2078]
[1756910633602,0.8227,4476.3,4475.0,0.3343]
[1756910633901,3.5381,4476.0,4475.0,4.24908047]
[1756910634100,0.8227,4475.9,4474.9,4.0415]
[1756910634302,0.8227,4475.9,4475.4,3.99108047]
[1756910634507,0.258,4476.4,4475.6,0.8337]
[1756910634701,0.258,4476.4,4476.0,0.8337]
[1756910635007,0.8227,4476.3,4476.0,4.82478047]
[1756910635406,0.258,4476.4,4476.0,3.99108047]
[1756910635607,0.258,4476.8,4476.2,3.2078]
[1756910635807,0.258,4476.8,4476.4,3.99108047]
[1756910636005,0.258,4476.8,4476.2,3.2078]
[1756910636205,1.0807,4476.8,4476.1,3.4658]
[1756910636412,1.0807,4476.8,4476.1,3.2078]
[1756910636709,0.8227,4476.4,4475.5,3.2078]
[1756910636902,0.8227,4476.2,4475.5,3.2078]
[1756910637101,4.0305,4476.2,4475.5,3.2078]
[1756910637701,0.8227,4476.2,4475.9,0.8337]
[1756910638009,0.258,4476.5,4475.8,3.99108047]
[1756910638210,0.258,4476.5,4475.8,4.24908047]
[1756910638406,0.8227,4476.8,4475.8,0.258]
[1756910638613,1.0807,4477.4,4476.4,4.82478047]
[1756910638810,0.8227,4477.3,4476.3,3.2078]
[1756910639112,0.8227,4476.7,4475.7,3.99108047]
[1756910639302,0.259,4476.6,4475.7,3.99108047]
[1756910639901,0.259,4476.6,4475.6,3.2078]
[1756910639902,0.259,4476.6,4475.6,7.19888047]
[1756910640109,3.2078,4476.3,4475.6,3.2078]
[1756910640506,0.8227,4475.7,4475.0,3.2078]
[1756910640704,1.0807,4475.7,4475.0,3.2078]
[1756910641109,1.0807,4475.7,4475.0,7.19888047]
[1756910641309,1.0807,4475.7,4475.0,3.99108047]
[1756910641612,1.0807,4475.7,4474.8,0.8337]
[1756910641804,1.0807,4475.7,4474.5,3.2078]
[1756910641805,3.2078,4475.1,4474.5,3.2078]
[1756910642006,3.2078,4475.1,4474.1,0.8337]
[1756910642007,1.0807,4475.0,4474.1,0.8337]
[1756910642202,1.0807,4475.0,4474.4,3.99108047]
[1756910642406,32.5033,4476.5,4474.4,3.99108047]
[1756910642407,3.2078,4475.6,4474.9,3.99108047]
[1756910642603,3.2078,4476.1,4475.5,3.99108047]
[1756910642804,0.3303,4476.0,4474.8,3.99108047]
[1756910643004,0.3303,4476.0,4474.8,7.19888047]
[1756910643005,1.0817,4475.9,4474.8,7.19888047]
[1756910643205,3.2078,4475.6,4474.8,7.19888047]
[1756910643614,3.2078,4475.6,4474.8,7.45788047]
[1756910644015,3.2078,4476.2,4475.4,0.8337]
[1756910645411,0.258,4476.3,4475.4,0.8337]
[1756910645412,3.2078,4476.7,4475.9,0.8337]
[1756910645713,4.0305,4476.7,4475.9,4.82478047]
[1756910645916,4.0305,4476.7,4475.9,0.8337]
[1756910646210,0.8227,4476.7,4475.9,4.82478047]
[1756910646415,4.0305,4476.7,4475.9,4.82478047]
[1756910646816,4.0305,4476.7,4475.9,3.99108047]
[1756910647816,0.258,4476.6,4476.0,0.8337]
[1756910648205,4.3608,4478.0,4476.6,0.8337]
[1756910648407,4.3608,4478.0,4477.3,3.99108047]
[1756910648817,0.258,4477.9,4477.3,3.99108047]
[1756910649211,0.258,4477.9,4476.9,3.2078]
[1756910649516,0.258,4477.9,4477.1,3.99108047]
[1756910650016,0.258,4477.9,4476.8,3.99108047]
[1756910650215,0.8227,4477.3,4476.8,3.99108047]
[1756910650405,0.8227,4477.3,4476.5,0.8337]
[1756910650609,0.8227,4477.3,4476.5,1.0917]
[1756910650812,0.8227,4477.3,4476.5,0.8337]
[1756910651213,3.2078,4476.9,4476.3,3.99108047]
[1756910652415,0.793,4476.8,4476.1,0.8337]
[1756910653009,0.793,4476.8,4475.9,3.99108047]
[1756910653415,0.793,4476.8,4475.0,0.3346]
[1756910653416,0.793,4476.3,4475.1,4.0389]
[1756910653615,3.2078,4475.9,4475.1,4.26231]
[1756910653815,3.2078,4475.9,4475.1,0.8311]
[1756910653816,4.0008,4475.9,4475.1,0.8311]
[1756910654010,4.2578,4475.9,4475.1,0.8311]
[1756910654427,0.5106363,4475.8,4475.1,0.8311]
[1756910654632,4.2578,4475.9,4475.3,3.99108047]
[1756910654828,0.51061792,4475.8,4475.3,3.99108047]
[1756910655028,0.793,4476.4,4475.4,1.0881]
[1756910655233,1.20017776,4477.6,4476.2,0.8063]
[1756910655234,0.793,4477.2,4476.2,0.8063]
[1756910655432,0.793,4477.2,4476.1,7.19888047]
[1756910655433,0.793,4477.2,4476.7,3.99108047]
[1756910655630,0.793,4477.2,4476.7,5.05438047]
[1756910655831,0.793,4477.4,4476.7,5.05438047]
[1756910656531,0.793,4477.4,4476.7,4.79738047]
[1756910656730,0.793,4477.4,4476.1,4.0141]
[1756910656930,0.793,4477.2,4476.1,4.0141]
[1756910657130,3.2078,4476.3,4475.5,8.00518047]
[1756910657337,3.2078,4476.3,4475.6,0.256]
[1756910657533,3.2078,4476.3,4475.5,8.00518047]
[1756910657830,3.2078,4476.3,4475.5,3.2078]
[1756910658138,0.793,4476.2,4475.6,0.256]
[1756910658329,3.2078,4475.8,4475.4,0.256]
[1756910658531,0.3297,4477.0,4475.7,7.19888047]
[1756910658532,4.0008,4476.7,4475.7,7.19888047]
[1756910658729,0.793,4476.7,4475.8,0.256]
[1756910659034,0.793,4476.7,4475.9,0.256]
[1756910659234,0.793,4476.7,4475.9,0.4794]
[1756910659540,0.3297,4477.0,4476.2,3.2078]
[1756910659836,0.793,4476.9,4476.2,3.2078]
[1756910660033,0.793,4476.9,4476.3,0.256]
[1756910660738,0.793,4476.9,4476.4,0.256]
[1756910660933,0.3297,4477.0,4476.4,0.256]
[1756910661231,0.3297,4477.0,4476.2,3.2078]
[1756910661232,1.1227,4477.0,4476.2,3.2078]
[1756910661437,0.3297,4476.5,4476.3,0.255]
[1756910661637,0.3297,4476.5,4476.2,3.2078]
[1756910662132,0.793,4476.4,4476.3,3.99108047]
[1756910662730,0.3297,4476.5,4475.5,3.2078]
[1756910662932,0.3297,4476.5,4475.8,3.99108047]
[1756910662933,0.793,4475.9,4475.8,3.99108047]
[1756910663128,0.3297,4476.5,4475.8,3.99108047]
[1756910663332,0.793,4476.5,4476.4,3.99108047]
[1756910663635,0.3297,4476.5,4476.1,3.99108047]
[1756910663838,0.793,4476.4,4476.1,3.99108047]
[1756910664338,0.3297,4476.5,4476.1,3.99108047]
[1756910664534,0.793,4476.4,4476.1,3.99108047]
[1756910664740,4.0008,4476.8,4476.1,3.99108047]
[1756910664940,4.0008,4476.8,4476.7,3.99108047]
[1756910665243,3.2078,4477.3,4476.7,3.99108047]
[1756910665537,0.793,4477.4,4477.2,7.19888047]
[1756910665936,0.793,4477.4,4477.2,7.45388047]
[1756910667032,0.3303,4477.5,4477.2,7.45388047]
[1756910667434,1.1227,4478.0,4477.2,7.45388047]
[1756910667633,0.50889935,4477.9,4477.2,7.45388047]
[1756910667841,0.50889935,4477.8,4477.2,7.45388047]
[1756910668035,1.1227,4478.0,4477.2,7.45388047]
[1756910668036,0.50889935,4477.7,4477.2,7.45388047]
[1756910668336,0.793,4477.4,4477.2,3.2078]
[1756910668536,0.793,4477.4,4477.3,0.254]
[1756910668837,0.793,4477.9,4477.3,0.254]
[1756910669043,0.50878182,4477.8,4477.3,0.254]
[1756910669240,0.50878182,4477.7,4477.3,0.254]
[1756910669443,1.30178182,4477.6,4477.5,3.99108047]
[1756910669738,0.3297,4478.0,4477.5,3.99108047]
[1756910669946,0.50865113,4477.9,4477.5,3.99108047]
[1756910670142,0.793,4477.7,4477.5,3.99108047]
[1756910670341,0.793,4477.7,4477.6,0.254]
[1756910670842,3.2078,4478.1,4477.6,0.254]
[1756910670843,0.3297,4478.5,4477.6,7.4618]
[1756910671048,0.793,4478.6,4478.4,3.99108047]
[1756910671245,0.793,4479.2,4478.4,3.99108047]
[1756910671450,3.5375,4479.5,4478.2,3.2078]
[1756910671451,1.1227,4479.0,4478.9,3.99108047]
[1756910671747,1.63095267,4479.0,4478.9,3.99108047]
[1756910672540,1.1227,4479.0,4478.9,3.99108047]
[1756910672949,0.793,4479.0,4478.9,4.24408047]
[1756910673147,1.1227,4479.0,4478.2,3.2078]
[1756910673340,0.793,4478.9,4478.8,3.99108047]
[1756910673542,0.3297,4479.0,4478.6,0.253]
[1756910673740,1.1227,4479.5,4478.6,0.253]
[1756910673946,0.50800242,4479.4,4478.9,3.99108047]
[1756910674149,0.3297,4479.5,4478.9,3.99108047]
[1756910674447,1.1227,4479.5,4479.4,3.99108047]
[1756910674642,1.1227,4480.0,4479.4,4.24408047]
[1756910674847,1.1227,4480.0,4479.9,3.99108047]
[1756910675057,1.1227,4480.0,4479.4,0.253]
[1756910675058,1.1227,4480.0,4479.4,3.99108047]
[1756910675248,0.3297,4480.0,4479.5,0.253]
[1756910675644,0.793,4479.9,4479.5,0.253]
[1756910675847,0.3297,4480.0,4479.5,0.253]
[1756910676150,0.3297,4480.0,4479.6,0.253]
[1756910676346,0.3297,4480.0,4479.7,0.253]
[1756910676648,0.793,4479.9,4479.7,0.253]
[1756910676853,0.793,4479.9,4479.2,3.2078]
[1756910677054,0.3297,4479.5,4479.3,0.253]
[1756910677256,0.793,4479.4,4479.3,0.253]
[1756910677656,0.793,4479.9,4479.3,0.253]
[1756910677854,0.793,4479.4,4478.7,3.2078]
[1756910678158,0.793,4479.4,4478.8,0.252]
[1756910678353,0.793,4479.4,4478.7,3.2078]
[1756910678551,0.3297,4479.5,4478.7,3.2078]
[1756910678858,0.793,4478.9,4478.7,3.2078]
[1756910679055,0.793,4478.9,4478.1,4.43622763]
[1756910679056,0.793,4478.9,4478.1,3.2078]
[1756910679245,0.793,4478.9,4478.1,3.4598]
[1756910679450,0.3297,4479.0,4477.9,0.252]
[1756910679451,0.3297,4478.0,4477.9,0.252]
[1756910679652,0.793,4477.9,4477.4,3.2078]
[1756910679853,1.1227,4477.5,4477.4,3.2078]
[1756910680246,1.1227,4477.5,4477.4,3.4598]
[1756910680448,1.1227,4477.5,4476.9,3.2078]
[1756910680854,0.3297,4477.5,4477.0,0.252]
[1756910681061,0.3297,4478.5,4477.4,7.64402763]
[1756910681261,0.3297,4478.0,4477.9,3.2078]
[1756910681463,1.1227,4478.0,4477.9,3.2078]
[1756910681753,0.8466,4477.9,4477.8,0.253]
[1756910681953,0.3297,4478.0,4477.6,0.253]
[1756910682154,0.8466,4477.9,4477.4,3.2078]
[1756910682350,0.3297,4478.0,4477.4,3.2078]
[1756910682351,1.1667,4477.5,4477.4,3.2078]
[1756910682549,1.1667,4477.5,4477.4,0.253]
[1756910682755,0.3201,4477.0,4476.9,3.2078]
[1756910682954,0.8466,4476.9,4476.4,3.2078]
[1756910683156,1.1667,4477.5,4476.7,4.43622763]
[1756910683353,0.3201,4477.5,4477.2,3.2078]
[1756910683658,0.3201,4477.5,4476.7,3.2078]
[1756910683860,0.3201,4477.0,4476.9,0.253]
[1756910684154,0.3201,4477.5,4476.9,0.253]
[1756910684353,0.3201,4477.5,4477.2,3.2078]
[1756910684559,0.8466,4477.4,4477.2,3.2078]
[1756910684761,0.3201,4477.5,4477.2,3.2078]
[1756910685766,0.8466,4477.4,4477.2,3.4598]
[1756910685962,0.8466,4477.9,4477.2,3.4598]
[1756910686652,0.3201,4479.0,4477.8,3.2078]
[1756910686851,0.8466,4478.9,4477.9,0.252]
[1756910687056,0.8466,4478.9,4478.0,0.253]
[1756910687258,0.8466,4478.9,4477.8,3.2078]
[1756910687464,0.8466,4478.9,4477.9,0.253]
[1756910687762,0.3201,4479.0,4478.0,0.252]
[1756910687963,0.8466,4478.9,4478.0,0.252]
[1756910689058,0.8466,4478.9,4478.3,3.2078]
[1756910689265,0.8466,4478.4,4478.3,3.4598]
[1756910689561,1.1667,4479.0,4478.3,3.4598]
[1756910690361,0.8466,4479.0,4478.3,3.4598]
[1756910690559,0.3201,4479.5,4478.3,3.4598]
[1756910690866,0.3201,4479.5,4478.8,3.2078]
[1756910691096,0.3201,4479.5,4478.9,0.252]
[1756910691659,0.3201,4479.5,4478.8,3.2078]
[1756910691866,0.8466,4479.4,4478.8,3.2078]
[1756910692165,0.3201,4479.0,4478.9,0.252]
[1756910692359,0.8466,4478.9,4478.8,3.2078]
[1756910693256,0.8466,4478.9,4478.6,0.252]
[1756910693257,0.3201,4479.0,4478.6,0.252]
[1756910693658,0.8466,4478.9,4478.6,0.252]
[1756910693866,0.3201,4479.0,4478.6,0.252]
[1756910694160,0.3201,4479.0,4478.2,3.2078]
[1756910694358,0.8466,4478.4,4478.2,3.4588]
[1756910694558,0.3201,4478.5,4478.2,3.4588]
[1756910694957,0.8466,4478.4,4478.2,3.2078]
[1756910695153,0.3201,4478.5,4478.2,3.2078]
[1756910695354,0.8466,4478.4,4478.2,3.2078]
[1756910695553,0.3201,4478.5,4478.2,3.2078]
[1756910695959,0.8466,4478.4,4478.2,3.2078]
[1756910696667,0.3201,4478.5,4478.2,3.2078]
[1756910697165,0.8466,4478.4,4478.2,3.2078]
[1756910697368,0.3201,4478.5,4478.2,3.2078]
[1756910697770,1.1667,4479.0,4478.3,0.251]